fUSD/lending_fUSD_20260608
["ID","MTS","AMOUNT","RATE_DAILY","PERIOD"]
[424438850,1780894249000,-1193.58134714,0.00020012,2]
[424438843,1780894249000,-190.2959377,0.0002,2]
[424438826,1780894249000,-1042.0,0.0002,2]
[424438831,1780894249000,-168.19,0.0002,30]
[424438830,1780894249000,-10241.0372897,0.0002,2]
[424438828,1780894249000,-598.0,0.0002,2]
[424438827,1780894249000,-1381.670952,0.0002,2]
[424438829,1780894249000,-2199.999999,0.0002,2]
[424438838,1780894249000,-356.68155194,0.0002,2]
[424438839,1780894249000,-4364.41,0.0002,2]
[424438833,1780894249000,-469.0,0.0002,2]
[424438835,1780894249000,-673.0,0.0002,2]
[424438879,1780894249000,-396.09,0.00020383,2]
[424438837,1780894249000,-1867.0,0.0002,2]
[424438834,1780894249000,-751.0,0.0002,2]
[424438832,1780894249000,-2593.6836384,0.0002,2]
[424438848,1780894249000,-2000.0,0.0002,7]
[424438849,1780894249000,-834.0,0.0002,2]
[424438846,1780894249000,-200.0,0.0002,10]
[424438842,1780894249000,-190.2959377,0.0002,2]
[424438852,1780894249000,-1859.0,0.0002005,2]
[424438847,1780894249000,-195.042,0.0002,2]
[424438853,1780894249000,-521.0,0.0002005,2]
[424438851,1780894249000,-2005.9555727,0.00020012,2]
[424438841,1780894249000,-190.2959377,0.0002,2]
[424438836,1780894249000,-400.0,0.0002,2]
[424438840,1780894249000,-3830.0,0.0002,2]
[424438910,1780894250000,-212.70442765,0.0002056,2]
[424438912,1780894250000,-160.61553387,0.0002056,2]
[424438915,1780894250000,-152.0,0.0002056,2]
[424438913,1780894250000,-151.0,0.0002056,2]
[424438908,1780894250000,-151.0,0.0002056,2]
[424438916,1780894250000,-209.40437684,0.0002056,2]
[424438911,1780894250000,-500.0,0.0002056,2]
[424438909,1780894250000,-151.0,0.0002056,2]
[424438918,1780894250000,-500.0,0.0002056,2]
[424438920,1780894250000,-151.0,0.0002056,2]
[424438914,1780894250000,-151.0,0.0002056,2]
[424438919,1780894250000,-152.0,0.0002056,2]
[424438933,1780894250000,-151.0,0.0002056,2]
[424438922,1780894250000,-152.0,0.0002056,2]
[424438924,1780894250000,-211.50687905,0.0002056,2]
[424438925,1780894250000,-153.02960119,0.0002056,2]
[424438927,1780894250000,-2080.17592889,0.0002056,2]
[424438923,1780894250000,-151.0,0.0002056,2]
[424438926,1780894250000,-151.0,0.0002056,2]
[424438928,1780894250000,-500.0,0.0002056,2]
[424438930,1780894250000,-151.0,0.0002056,2]
[424438929,1780894250000,-151.0,0.0002056,2]
[424438940,1780894250000,-152.0,0.0002056,2]
[424438931,1780894250000,-152.0,0.0002056,2]
[424438917,1780894250000,-151.93097097,0.0002056,2]
[424438921,1780894250000,-500.0,0.0002056,2]
[424438907,1780894250000,-151.0,0.0002056,2]
[424438889,1780894250000,-396.11,0.00020479,2]
[424438905,1780894250000,-151.0,0.0002056,2]
[424438932,1780894250000,-500.0,0.0002056,2]
[424438883,1780894250000,-152.0,0.00020461,11]
[424438880,1780894250000,-644.0,0.00020383,2]
[424438881,1780894250000,-396.09,0.00020383,2]
[424438882,1780894250000,-356.68155194,0.000204,2]
[424438884,1780894250000,-500.0,0.00020468,2]
[424438885,1780894250000,-644.0,0.00020479,2]
[424438887,1780894250000,-575.32,0.00020479,2]
[424438888,1780894250000,-396.11,0.00020479,2]
[424438893,1780894250000,-506.04356219,0.00020509,7]
[424438886,1780894250000,-482.18,0.00020479,2]
[424438891,1780894250000,-500.0,0.00020509,7]
[424438890,1780894250000,-575.32,0.00020479,2]
[424438894,1780894250000,-1124.99999999,0.00020531,2]
[424438892,1780894250000,-900.0,0.00020509,7]
[424438896,1780894250000,-275.0,0.0002056,2]
[424438895,1780894250000,-300.0,0.00020548,2]
[424438898,1780894250000,-211.33443123,0.0002056,2]
[424438897,1780894250000,-693.39197629,0.0002056,2]
[424438899,1780894250000,-151.0,0.0002056,2]
[424438901,1780894250000,-200.0,0.0002056,2]
[424438903,1780894250000,-151.0,0.0002056,2]
[424438900,1780894250000,-151.0,0.0002056,2]
[424438902,1780894250000,-151.0,0.0002056,2]
[424438904,1780894250000,-174.61919141,0.0002056,2]
[424438906,1780894250000,-578.20924308,0.0002056,2]
[424438936,1780894250000,-500.0,0.0002056,2]
[424438935,1780894250000,-152.0,0.0002056,2]
[424438937,1780894250000,-151.0,0.0002056,2]
[424438969,1780894250000,-745.65223615,0.0002067,2]
[424438975,1780894250000,-500.0,0.00020768,2]
[424438965,1780894250000,-151.0,0.0002056,2]
[424438970,1780894250000,-151.0,0.0002067,2]
[424438971,1780894250000,-2323.0,0.00020697,2]
[424438973,1780894250000,-415.26269629,0.00020725,2]
[424438972,1780894250000,-152.0,0.00020704,12]
[424438977,1780894250000,-356.68155194,0.000208,2]
[424438987,1780894250000,-469.0,0.00021,2]
[424438976,1780894250000,-151.0,0.0002078,2]
[424438979,1780894250000,-2000.0,0.0002081,2]
[424438980,1780894250000,-151.0,0.00020835,2]
[424438974,1780894250000,-151.0,0.00020725,2]
[424438983,1780894250000,-152.0,0.00020947,13]
[424438984,1780894250000,-151.0,0.00021,2]
[424438982,1780894250000,-151.0,0.00020945,2]
[424438985,1780894250000,-1381.670952,0.00021,2]
[424438981,1780894250000,-151.0,0.0002089,2]
[424438988,1780894250000,-751.0,0.00021,2]
[424438991,1780894250000,-238.96596679,0.00021,2]
[424438990,1780894250000,-1867.0,0.00021,2]
[424438989,1780894250000,-673.0,0.00021,2]
[424438992,1780894250000,-1859.0,0.0002105,2]
[424438993,1780894250000,-521.0,0.0002105,2]
[424438934,1780894250000,-151.0,0.0002056,2]
[424438994,1780894250000,-552.0,0.0002105,2]
[424438986,1780894250000,-150.0,0.00021,2]
[424438968,1780894250000,-151.0,0.00020615,2]
[424438978,1780894250000,-500.95884429,0.0002081,2]
[424438964,1780894250000,-151.0,0.0002056,2]
[424438938,1780894250000,-151.0,0.0002056,2]
[424438967,1780894250000,-719.04747942,0.00020615,2]
[424438939,1780894250000,-500.0,0.0002056,2]
[424438941,1780894250000,-151.0,0.0002056,2]
[424438943,1780894250000,-500.0,0.0002056,2]
[424438944,1780894250000,-152.0,0.0002056,2]
[424438945,1780894250000,-151.0,0.0002056,2]
[424438942,1780894250000,-151.0,0.0002056,2]
[424438950,1780894250000,-151.0,0.0002056,2]
[424438947,1780894250000,-500.0,0.0002056,2]
[424438946,1780894250000,-151.0,0.0002056,2]
[424438948,1780894250000,-151.0,0.0002056,2]
[424438952,1780894250000,-152.0,0.0002056,2]
[424438951,1780894250000,-151.0,0.0002056,2]
[424438954,1780894250000,-151.0,0.0002056,2]
[424438966,1780894250000,-356.68155194,0.000206,2]
[424438949,1780894250000,-152.0,0.0002056,2]
[424438962,1780894250000,-151.0,0.0002056,2]
[424438960,1780894250000,-500.0,0.0002056,2]
[424438963,1780894250000,-151.0,0.0002056,2]
[424438959,1780894250000,-151.0,0.0002056,2]
[424438961,1780894250000,-152.0,0.0002056,2]
[424438957,1780894250000,-152.0,0.0002056,2]
[424438953,1780894250000,-500.0,0.0002056,2]
[424438956,1780894250000,-500.0,0.0002056,2]
[424438955,1780894250000,-151.0,0.0002056,2]
[424438958,1780894250000,-151.0,0.0002056,2]
[424439037,1780894251000,-500.0,0.00021627,2]
[424439035,1780894251000,-164.0,0.000216,2]
[424439034,1780894251000,-150.0,0.000216,2]
[424439033,1780894251000,-150.0,0.000216,2]
[424439031,1780894251000,-150.0,0.000216,2]
[424439030,1780894251000,-150.0,0.000216,2]
[424439025,1780894251000,-1274.0,0.00021467,2]
[424439029,1780894251000,-150.0,0.000216,2]
[424439028,1780894251000,-6074.0,0.00021467,2]
[424439026,1780894251000,-382.0,0.00021467,2]
[424439042,1780894251000,-500.0,0.00021656,2]
[424439032,1780894251000,-150.0,0.000216,2]
[424439039,1780894251000,-200.0,0.00021656,2]
[424439048,1780894251000,-158.0,0.000219,7]
[424439036,1780894251000,-900.0,0.00021605,7]
[424439041,1780894251000,-151.0,0.00021656,2]
[424439040,1780894251000,-187.78006524,0.00021656,2]
[424439044,1780894251000,-152.0,0.00021675,16]
[424439046,1780894251000,-500.0,0.00021814,2]
[424439043,1780894251000,-2236.95670847,0.00021656,2]
[424439045,1780894251000,-4364.41,0.00021684,2]
[424439056,1780894251000,-150.0,0.00021918,2]
[424439050,1780894251000,-152.0,0.00021918,17]
[424439047,1780894251000,-557.02090225,0.00021897,2]
[424439057,1780894251000,-200.0,0.00021918,2]
[424439027,1780894251000,-1227.0,0.00021467,2]
[424439038,1780894251000,-275.0,0.00021656,2]
[424439024,1780894251000,-3555.0,0.00021467,2]
[424438998,1780894251000,-2258.0,0.0002105,2]
[424439020,1780894251000,-1430.41,0.000214,2]
[424439058,1780894251000,-156.587,0.00021929,2]
[424438999,1780894251000,-772.0,0.0002105,2]
[424438996,1780894251000,-776.0,0.0002105,2]
[424438997,1780894251000,-840.0,0.0002105,2]
[424438995,1780894251000,-1037.0,0.0002105,2]
[424439011,1780894251000,-151.0,0.0002111,2]
[424439001,1780894251000,-390.0,0.0002105,2]
[424439002,1780894251000,-151.0,0.00021055,2]
[424439000,1780894251000,-1231.0,0.0002105,2]
[424439003,1780894251000,-500.0,0.00021067,2]
[424439005,1780894251000,-275.0,0.00021108,2]
[424439009,1780894251000,-500.0,0.00021108,2]
[424439004,1780894251000,-3620.0,0.00021089,2]
[424439008,1780894251000,-151.0,0.00021108,2]
[424439007,1780894251000,-181.08010149,0.00021108,2]
[424439010,1780894251000,-2157.14243826,0.00021108,2]
[424439006,1780894251000,-200.0,0.00021108,2]
[424439012,1780894251000,-152.0,0.0002119,14]
[424439015,1780894251000,-628.29,0.00021273,2]
[424439013,1780894251000,-1114.05,0.000212,7]
[424439023,1780894251000,-1358.0,0.00021467,2]
[424439017,1780894251000,-434.82,0.00021273,2]
[424439014,1780894251000,-500.0,0.00021254,2]
[424439016,1780894251000,-1329.79,0.00021273,2]
[424439018,1780894251000,-482.18,0.00021301,2]
[424439022,1780894251000,-500.0,0.00021441,2]
[424439021,1780894251000,-152.0,0.00021432,15]
[424439019,1780894251000,-482.2,0.00021301,2]
[424439051,1780894251000,-5000.0,0.00021918,2]
[424439112,1780894251000,-1430.41,0.000226,7]
[424439052,1780894251000,-151.0,0.00021918,2]
[424439094,1780894251000,-200.0,0.00022204,2]
[424439093,1780894251000,-275.0,0.00022204,2]
[424439084,1780894251000,-200.0,0.00022173,2]
[424439091,1780894251000,-328.0,0.00022173,2]
[424439089,1780894251000,-200.0,0.00022173,2]
[424439092,1780894251000,-500.0,0.00022187,2]
[424439088,1780894251000,-200.0,0.00022173,2]
[424439090,1780894251000,-200.0,0.00022173,2]
[424439096,1780894251000,-151.0,0.00022204,2]
[424439106,1780894251000,-273.22,0.00022466,2]
[424439107,1780894251000,-1931.83,0.00022466,2]
[424439095,1780894251000,-194.72792766,0.00022204,2]
[424439086,1780894251000,-200.0,0.00022173,2]
[424439099,1780894251000,-866.3,0.00022353,2]
[424439102,1780894251000,-229.94258629,0.00022407,2]
[424439100,1780894251000,-500.0,0.00022373,2]
[424439101,1780894251000,-152.0,0.00022403,19]
[424439104,1780894251000,-229.94258628,0.00022407,2]
[424439105,1780894251000,-383.8,0.00022466,2]
[424439103,1780894251000,-229.94258628,0.00022407,2]
[424439108,1780894251000,-289.04,0.00022466,2]
[424439113,1780894251000,-168.31,0.00022603,2]
[424439110,1780894251000,-1514.0,0.00022521,2]
[424439111,1780894251000,-500.0,0.0002256,2]
[424439109,1780894251000,-337.27,0.00022466,2]
[424439049,1780894251000,-158.0,0.000219,7]
[424439097,1780894251000,-500.0,0.00022204,2]
[424439087,1780894251000,-200.0,0.00022173,2]
[424439098,1780894251000,-2319.72410669,0.00022204,2]
[424439083,1780894251000,-152.0,0.0002216,18]
[424439085,1780894251000,-200.0,0.00022173,2]
[424439053,1780894251000,-152.545416,0.00021918,2]
[424439055,1780894251000,-175.0,0.00021918,2]
[424439061,1780894251000,-221.00653772,0.00022,3]
[424439059,1780894251000,-217.15233878,0.00021929,2]
[424439062,1780894251000,-1381.670952,0.00022,2]
[424439065,1780894251000,-673.0,0.00022,2]
[424439060,1780894251000,-228.0,0.00021968,2]
[424439069,1780894251000,-2000.0,0.00022,7]
[424439063,1780894251000,-469.0,0.00022,2]
[424439066,1780894251000,-450.0,0.00022,2]
[424439068,1780894251000,-1864.51,0.00022,2]
[424439064,1780894251000,-751.0,0.00022,2]
[424439067,1780894251000,-1867.0,0.00022,2]
[424439054,1780894251000,-300.0,0.00021918,2]
[424439080,1780894251000,-390.0,0.0002205,2]
[424439070,1780894251000,-500.0,0.00022,2]
[424439075,1780894251000,-776.0,0.0002205,2]
[424439079,1780894251000,-1231.0,0.0002205,2]
[424439078,1780894251000,-772.0,0.0002205,2]
[424439076,1780894251000,-840.0,0.0002205,2]
[424439073,1780894251000,-552.0,0.0002205,2]
[424439077,1780894251000,-2258.0,0.0002205,2]
[424439071,1780894251000,-1859.0,0.0002205,2]
[424439082,1780894251000,-249.0,0.0002215,2]
[424439074,1780894251000,-1037.0,0.0002205,2]
[424439072,1780894251000,-521.0,0.0002205,2]
[424439081,1780894251000,-200.0,0.00022059,2]
[424439148,1780894252000,-250.0,0.00023287,4]
[424439153,1780894252000,-300.0,0.00023288,2]
[424439144,1780894252000,-397.12588771,0.0002305,2]
[424439154,1780894252000,-150.0,0.00023288,2]
[424439151,1780894252000,-250.0,0.00023288,4]
[424439143,1780894252000,-1238.03968174,0.0002305,2]
[424439150,1780894252000,-250.0,0.00023288,4]
[424439149,1780894252000,-175.0,0.00023287,2]
[424439145,1780894252000,-500.0,0.0002312,2]
[424439146,1780894252000,-152.0,0.00023131,22]
[424439155,1780894252000,-250.0,0.00023288,4]
[424439152,1780894252000,-250.0,0.00023288,4]
[424439158,1780894252000,-275.0,0.000233,2]
[424439157,1780894252000,-195.01339788,0.00023298,2]
[424439159,1780894252000,-200.0,0.000233,2]
[424439164,1780894252000,-199.43085431,0.00023303,2]
[424439156,1780894252000,-155.65892282,0.00023298,2]
[424439162,1780894252000,-500.0,0.000233,2]
[424439165,1780894252000,-500.0,0.00023306,2]
[424439163,1780894252000,-2494.55939288,0.000233,2]
[424439160,1780894252000,-209.40437684,0.000233,2]
[424439167,1780894252000,-154.11033324,0.00023325,2]
[424439177,1780894252000,-2356.0,0.000234,3]
[424439170,1780894252000,-2323.0,0.00023352,3]
[424439169,1780894252000,-250.0,0.00023329,4]
[424439166,1780894252000,-162.76660164,0.00023325,2]
[424439161,1780894252000,-151.0,0.000233,2]
[424439147,1780894252000,-164.72,0.00023246,4]
[424439168,1780894252000,-531.81561148,0.00023325,2]
[424439139,1780894252000,-791.45096348,0.0002305,2]
[424439114,1780894252000,-152.0,0.00022646,20]
[424439118,1780894252000,-275.0,0.00022752,2]
[424439120,1780894252000,-201.93286098,0.00022752,2]
[424439116,1780894252000,-500.0,0.00022701,7]
[424439119,1780894252000,-200.0,0.00022752,2]
[424439117,1780894252000,-500.0,0.00022747,2]
[424439115,1780894252000,-900.0,0.00022701,7]
[424439121,1780894252000,-151.0,0.00022752,2]
[424439122,1780894252000,-500.0,0.00022752,2]
[424439123,1780894252000,-2405.55389863,0.00022752,2]
[424439129,1780894252000,-1381.670952,0.00023,2]
[424439130,1780894252000,-300.0,0.00023,20]
[424439124,1780894252000,-200.0,0.00022829,2]
[424439128,1780894252000,-500.0,0.00022933,2]
[424439127,1780894252000,-1051.0,0.00022901,2]
[424439126,1780894252000,-152.0,0.00022888,21]
[424439125,1780894252000,-644.0,0.00022848,2]
[424439131,1780894252000,-469.0,0.00023,2]
[424439133,1780894252000,-673.0,0.00023,2]
[424439132,1780894252000,-751.0,0.00023,2]
[424439134,1780894252000,-1867.0,0.00023,2]
[424439136,1780894252000,-539.30567759,0.0002305,2]
[424439135,1780894252000,-1874.32607415,0.0002305,2]
[424439137,1780894252000,-556.52077405,0.0002305,2]
[424439141,1780894252000,-2267.42800724,0.0002305,2]
[424439140,1780894252000,-848.14895465,0.0002305,2]
[424439138,1780894252000,-1045.75925436,0.0002305,2]
[424439142,1780894252000,-779.62532042,0.0002305,2]
[424439175,1780894252000,-531.81561148,0.00023393,2]
[424439212,1780894252000,-531.81561148,0.00023867,7]
[424439174,1780894252000,-152.0,0.00023374,23]
[424439206,1780894252000,-151.0,0.00023848,2]
[424439208,1780894252000,-2586.85809042,0.00023848,2]
[424439204,1780894252000,-200.0,0.00023848,2]
[424439213,1780894252000,-154.11033324,0.00023886,7]
[424439210,1780894252000,-199.43085431,0.00023863,7]
[424439209,1780894252000,-152.0,0.00023859,25]
[424439233,1780894252000,-626.0,0.00024108,2]
[424439211,1780894252000,-500.0,0.00023866,2]
[424439214,1780894252000,-162.76660164,0.00023886,7]
[424439215,1780894252000,-160.0,0.00023928,3]
[424439216,1780894252000,-531.81561148,0.00023935,7]
[424439218,1780894252000,-468.39,0.00024,2]
[424439228,1780894252000,-160.0,0.0002404,3]
[424439217,1780894252000,-420.0,0.00023937,2]
[424439222,1780894252000,-689.73839937,0.00024,2]
[424439221,1780894252000,-764.0100459,0.00024,2]
[424439220,1780894252000,-477.05157251,0.00024,2]
[424439229,1780894252000,-160.0,0.0002404,3]
[424439226,1780894252000,-531.81561148,0.00024003,7]
[424439225,1780894252000,-2000.0,0.00024,7]
[424439219,1780894252000,-1381.670952,0.00024,2]
[424439223,1780894252000,-500.0,0.00024,2]
[424439227,1780894252000,-420.0,0.00024023,2]
[424439224,1780894252000,-1879.9547525,0.00024,2]
[424439232,1780894252000,-152.0,0.00024102,26]
[424439230,1780894252000,-500.0,0.00024053,2]
[424439231,1780894252000,-531.81561148,0.0002407,14]
[424439207,1780894252000,-500.0,0.00023848,2]
[424439205,1780894252000,-217.15233878,0.00023848,2]
[424439171,1780894252000,-2323.0,0.00023352,3]
[424439200,1780894252000,-900.0,0.00023797,7]
[424439176,1780894252000,-2303.0,0.000234,3]
[424439172,1780894252000,-213.0,0.00023352,3]
[424439173,1780894252000,-4364.41,0.00023368,7]
[424439178,1780894252000,-165.72,0.00023425,2]
[424439180,1780894252000,-500.0,0.00023493,2]
[424439182,1780894252000,-199.43085431,0.00023583,7]
[424439186,1780894252000,-158.0,0.000236,10]
[424439203,1780894252000,-275.0,0.00023848,2]
[424439188,1780894252000,-162.76660164,0.00023606,7]
[424439183,1780894252000,-531.81561148,0.00023596,7]
[424439190,1780894252000,-181.7678467,0.00023615,3]
[424439181,1780894252000,-531.81561148,0.00023528,2]
[424439179,1780894252000,-531.81561148,0.00023461,2]
[424439189,1780894252000,-2000.0,0.00023613,2]
[424439187,1780894252000,-154.11033324,0.00023606,7]
[424439184,1780894252000,-200.0,0.00023599,2]
[424439199,1780894252000,-150.0,0.0002375,2]
[424439198,1780894252000,-356.0,0.00023748,7]
[424439197,1780894252000,-531.81561148,0.00023732,7]
[424439196,1780894252000,-2323.0,0.0002372,3]
[424439193,1780894252000,-531.81561148,0.00023664,7]
[424439201,1780894252000,-531.81561148,0.00023799,7]
[424439194,1780894252000,-500.0,0.0002368,2]
[424439191,1780894252000,-152.0,0.00023616,24]
[424439192,1780894252000,-482.18,0.00023644,2]
[424439202,1780894252000,-1430.41,0.000238,7]
[424439185,1780894252000,-158.0,0.000236,10]
[424439195,1780894252000,-2323.0,0.0002372,3]
[424439267,1780894253000,-3555.0,0.00024467,2]
[424439275,1780894253000,-531.81561148,0.00024544,14]
[424439271,1780894253000,-4771.33,0.00024467,2]
[424439270,1780894253000,-1227.0,0.00024467,2]
[424439272,1780894253000,-395.0,0.00024475,2]
[424439273,1780894253000,-531.81561148,0.00024477,14]
[424439269,1780894253000,-382.0,0.00024467,2]
[424439268,1780894253000,-1274.0,0.00024467,2]
[424439265,1780894253000,-151.0,0.00024461,2]
[424439274,1780894253000,-626.0,0.00024519,2]
[424439276,1780894253000,-168.94684495,0.0002455,15]
[424439277,1780894253000,-557.02090225,0.00024565,2]
[424439303,1780894253000,-768.290814,0.00024658,2]
[424439279,1780894253000,-152.0,0.00024587,28]
[424439280,1780894253000,-420.0,0.00024599,2]
[424439282,1780894253000,-500.0,0.00024612,2]
[424439286,1780894253000,-1000.0,0.00024658,2]
[424439288,1780894253000,-151.0,0.00024658,2]
[424439289,1780894253000,-151.0,0.00024658,2]
[424439284,1780894253000,-167.65390087,0.00024658,2]
[424439283,1780894253000,-175.0,0.00024656,2]
[424439285,1780894253000,-350.01,0.00024658,5]
[424439278,1780894253000,-420.0,0.00024587,2]
[424439287,1780894253000,-174.71,0.00024658,2]
[424439294,1780894253000,-768.290814,0.00024658,2]
[424439266,1780894253000,-1358.0,0.00024467,2]
[424439281,1780894253000,-531.81561148,0.00024612,30]
[424439260,1780894253000,-199.43085431,0.00024424,14]
[424439243,1780894253000,-531.81561148,0.00024206,14]
[424439256,1780894253000,-151.0,0.00024396,2]
[424439290,1780894253000,-151.0,0.00024658,2]
[424439238,1780894253000,-531.81561148,0.00024138,14]
[424439234,1780894253000,-335.82,0.0002411,2]
[424439236,1780894253000,-252.91,0.0002411,2]
[424439237,1780894253000,-295.12,0.0002411,2]
[424439235,1780894253000,-239.07,0.0002411,2]
[424439239,1780894253000,-199.43085431,0.00024144,14]
[424439240,1780894253000,-154.11033324,0.00024167,14]
[424439242,1780894253000,-160.0,0.00024176,3]
[424439246,1780894253000,-531.81561148,0.00024274,14]
[424439248,1780894253000,-866.3,0.00024324,2]
[424439244,1780894253000,-500.0,0.00024239,2]
[424439245,1780894253000,-2271.0,0.00024253,2]
[424439249,1780894253000,-531.81561148,0.00024341,14]
[424439251,1780894253000,-160.0,0.0002436,3]
[424439250,1780894253000,-152.0,0.00024344,27]
[424439247,1780894253000,-347.0,0.00024275,2]
[424439241,1780894253000,-162.76660164,0.00024167,14]
[424439254,1780894253000,-200.0,0.00024396,2]
[424439264,1780894253000,-162.76660164,0.00024448,30]
[424439253,1780894253000,-275.0,0.00024396,2]
[424439255,1780894253000,-225.18697532,0.00024396,2]
[424439257,1780894253000,-500.0,0.00024396,2]
[424439259,1780894253000,-531.81561148,0.00024409,14]
[424439262,1780894253000,-420.0,0.00024441,2]
[424439263,1780894253000,-154.11033324,0.00024448,30]
[424439261,1780894253000,-500.0,0.00024426,2]
[424439258,1780894253000,-2682.57183977,0.00024396,2]
[424439291,1780894253000,-151.0,0.00024658,2]
[424439252,1780894253000,-200.0,0.00024369,2]
[424439302,1780894253000,-768.290814,0.00024658,2]
[424439326,1780894253000,-162.76660164,0.00024728,60]
[424439328,1780894253000,-420.0,0.00024753,2]
[424439331,1780894253000,-500.0,0.00024799,2]
[424439332,1780894253000,-420.0,0.00024811,2]
[424439329,1780894253000,-1864.51,0.00024754,7]
[424439330,1780894253000,-420.0,0.00024799,2]
[424439327,1780894253000,-531.81561148,0.00024748,30]
[424439333,1780894253000,-206.0,0.00024815,2]
[424439334,1780894253000,-531.81561148,0.00024815,30]
[424439336,1780894253000,-420.0,0.00024837,2]
[424439338,1780894253000,-420.0,0.00024865,2]
[424439340,1780894253000,-531.81561148,0.00024883,30]
[424439337,1780894253000,-362.97874569,0.00024856,2]
[424439347,1780894253000,-350.0,0.00024904,2]
[424439348,1780894253000,-626.0,0.0002493,2]
[424439339,1780894253000,-2576.50214403,0.00024876,3]
[424439341,1780894253000,-500.0,0.00024893,7]
[424439342,1780894253000,-159.0,0.000249,20]
[424439349,1780894253000,-275.0,0.00024944,2]
[424439353,1780894253000,-500.0,0.00024944,2]
[424439344,1780894253000,-200.0,0.000249,9]
[424439343,1780894253000,-489.84630771,0.000249,2]
[424439345,1780894253000,-3929.87593289,0.000249,2]
[424439346,1780894253000,-252.85318956,0.000249,2]
[424439301,1780894253000,-768.290814,0.00024658,2]
[424439350,1780894253000,-200.0,0.00024944,2]
[424439352,1780894253000,-151.0,0.00024944,2]
[424439335,1780894253000,-152.0,0.0002483,29]
[424439324,1780894253000,-199.43085431,0.00024704,30]
[424439351,1780894253000,-233.5188934,0.00024944,2]
[424439322,1780894253000,-150.0,0.00024658,2]
[424439325,1780894253000,-154.11033324,0.00024728,60]
[424439297,1780894253000,-768.290814,0.00024658,2]
[424439293,1780894253000,-211.551119,0.00024658,2]
[424439299,1780894253000,-768.290814,0.00024658,2]
[424439295,1780894253000,-768.290814,0.00024658,2]
[424439292,1780894253000,-151.0,0.00024658,2]
[424439296,1780894253000,-768.290814,0.00024658,2]
[424439300,1780894253000,-768.290814,0.00024658,2]
[424439305,1780894253000,-768.290814,0.00024658,2]
[424439306,1780894253000,-768.290814,0.00024658,2]
[424439304,1780894253000,-768.290814,0.00024658,2]
[424439307,1780894253000,-768.290814,0.00024658,2]
[424439309,1780894253000,-768.290814,0.00024658,2]
[424439298,1780894253000,-768.290814,0.00024658,2]
[424439312,1780894253000,-151.0,0.00024658,2]
[424439323,1780894253000,-531.81561148,0.0002468,30]
[424439308,1780894253000,-768.290814,0.00024658,2]
[424439320,1780894253000,-188.809671,0.00024658,2]
[424439321,1780894253000,-300.0,0.00024658,2]
[424439318,1780894253000,-151.0,0.00024658,2]
[424439317,1780894253000,-151.0,0.00024658,2]
[424439316,1780894253000,-151.0,0.00024658,2]
[424439319,1780894253000,-151.0,0.00024658,2]
[424439313,1780894253000,-151.0,0.00024658,2]
[424439315,1780894253000,-151.0,0.00024658,2]
[424439314,1780894253000,-151.0,0.00024658,2]
[424439311,1780894253000,-151.0,0.00024658,2]